lending/lending_fUSD_20240219
["ID","MTS","AMOUNT","RATE_DAILY","PERIOD"]
[314434380,1708342246039,-1326.49,0.000389,3]
[314434381,1708342246048,-1326.49,0.000389,3]
[314434382,1708342246057,-1326.49,0.000389,3]
[314434383,1708342246066,-1326.49,0.000389,3]
[314434384,1708342246075,-1326.49,0.000389,3]
[314434385,1708342246083,-1326.49,0.000389,3]
[314434386,1708342246093,-1326.49,0.000389,3]
[314434387,1708342246102,-1326.49,0.000389,3]
[314434388,1708342246110,-1326.49,0.000389,3]
[314434389,1708342246119,-1326.49,0.000389,3]
[314434390,1708342246128,-1326.49,0.000389,3]
[314434391,1708342246137,-1326.49,0.000389,3]
[314434392,1708342246147,-1326.49,0.000389,3]
[314434393,1708342246156,-1326.49,0.000389,3]
[314434394,1708342246165,-152.81,0.000389,3]
[314434395,1708342246174,-152.81,0.000389,3]
[314434396,1708342246183,-152.81,0.000389,3]
[314434397,1708342246193,-397.0,0.00038904,14]
[314434398,1708342246202,-1249.2170185,0.00038927,10]
[314434399,1708342246211,-8695.51,0.00038937,2]
[314434400,1708342246220,-1249.2170185,0.00038937,10]
[314434401,1708342246229,-2681.1637624,0.00038947,8]
[314434402,1708342246238,-663.5880312,0.00038947,7]
[314434403,1708342246247,-624.07766096,0.00038947,7]
[314434406,1708342246399,-273.09406601,0.00038947,7]
[314434408,1708342246409,-383.07598505,0.00038971,9]
[314434410,1708342246418,-184.38543664,0.00038971,2]
[314434411,1708342246428,-151.57423126,0.00039,2]
[314434412,1708342246438,-900.0,0.00039,4]
[314434413,1708342246452,-250.0,0.00039,2]
[314434414,1708342246462,-165.37,0.00039038,2]
[314434415,1708342246472,-150.0,0.000391,2]
[314434416,1708342246482,-200.387623,0.00039173,2]
[314434417,1708342246492,-250.484529,0.00039173,2]
[314434418,1708342246502,-349.73003668,0.00039176,4]
[314434419,1708342246512,-990.57115524,0.00039177,5]
[314434420,1708342246521,-397.0,0.00039178,14]
[314434421,1708342246531,-1000.0,0.0003926,2]
[314434422,1708342246540,-383.07598505,0.00039328,9]
[314434423,1708342246552,-152.266666,0.0003933,7]
[314434424,1708342246562,-1249.2170185,0.00039361,10]
[314434425,1708342246571,-172.62,0.00039415,2]
[314434426,1708342246580,-397.0,0.00039452,14]
[314434427,1708342246590,-728.22349459,0.0003949,11]
[314434428,1708342246600,-300.0,0.0003949,2]
[314434429,1708342246609,-150.0,0.00039503,2]
[314434430,1708342246619,-165.37,0.0003958,2]
[314434431,1708342246628,-200.0,0.000396,13]
[314434432,1708342246638,-184.38543664,0.00039626,2]
[314434433,1708342246648,-383.07598505,0.00039685,9]
[314434434,1708342246658,-2000.0,0.000397,2]
[314434435,1708342246667,-163.432888,0.00039719,7]
[314434436,1708342246677,-251.82,0.00039726,2]
[314434437,1708342246686,-1249.2170185,0.00039764,10]
[314434438,1708342246699,-1471.7402248,0.00039768,2]
[314434439,1708342246709,-267.26,0.00039804,2]
[314434440,1708342246719,-1249.2170185,0.0003988,10]
[314434441,1708342246729,-843.85629429,0.00039883,2]
[314434442,1708342246738,-1249.2170185,0.0003989,10]
[314434443,1708342246747,-183.55964388,0.00039897,2]
[314434444,1708342246756,-159.76414037,0.00039897,13]
[314434445,1708342246765,-153.88439155,0.00039899,6]
[314434446,1708342246775,-539.63335447,0.00039899,2]
[314434447,1708342246784,-160.20570354,0.000399,2]
[314434448,1708342246793,-5000.0,0.000399,3]
[314434449,1708342246802,-183.55964387,0.000399,2]
[314434450,1708342246811,-220.27624933,0.000399,2]
[314434451,1708342246820,-2349.5110434,0.000399,2]
[314434452,1708342246829,-282.82935844,0.000399,31]
[314434453,1708342246839,-159.7641403,0.0003996,13]
[314434454,1708342246848,-1249.2170185,0.0003997,10]
[314434455,1708342246857,-60347.56342982,0.0003998,6]
[314434456,1708342246871,-1470.49144556,0.0003998,6]
[314434457,1708342246902,-2765.57331738,0.0003998,6]
[314434458,1708342246913,-2522.73223,0.0003998,6]
[314434459,1708342246924,-509.94462199,0.0003998,6]
[314434460,1708342246935,-360.45183548,0.0003998,6]
[314434461,1708342246950,-1106.62162,0.0003998,6]
[314434462,1708342247033,-190966.51382187,0.0003998,6]
[314434463,1708342247047,-7103.3974059,0.0003998,6]
[314434464,1708342247057,-166.53,0.00039983,2]
[314434465,1708342247066,-63805.17549329,0.00039987,6]
[314434466,1708342589170,177.1,0.00017617,2]
[314434467,1708342686083,150.0,0.00017617,2]
[314434468,1708342686105,5.0,0.00017617,2]
[314434469,1708342702080,155.0,0.00017617,2]
[314434470,1708342722074,150.0,0.00017617,2]
[314434471,1708342722094,5.0,0.00017617,2]
[314434472,1708342742075,150.0,0.00017617,2]
[314434473,1708342742095,5.0,0.00017617,2]
[314434474,1708342758078,193.41471261,0.00017617,2]
[314434476,1708343150465,150.0,0.00024888,2]
[314434477,1708343150485,73.975961,0.00024888,2]
[314434478,1708343229265,-155.0,0.00029993,2]
[314434479,1708343229285,-246.62121727,0.00029994,2]
[314434480,1708343229306,-155.0,0.00029995,2]
[314434481,1708343229329,-1000.0,0.0003,2]
[314434482,1708343229350,-59.82339138,0.00034299,2]
[314434483,1708343280343,150.0,0.00025,3]
[314434484,1708343280364,150.0,0.00025,3]
[314434485,1708343280385,150.0,0.00025,3]
[314434486,1708343280404,100.0,0.00025,3]
[314434487,1708343348110,-408.78823541,0.00027,3]
[314434488,1708343350131,-191.21176459,0.00027,3]
[314434489,1708343350152,-406.26444534,0.00029,3]
[314434490,1708343356117,-160.76257597,0.00029,3]
[314434491,1708343369256,-82.97297869,0.00029,3]
[314434492,1708343369278,-676.60702131,0.00031,3]
[314434511,1708343432492,-23.39297869,0.00031,3]
[314434512,1708343432503,-232.70778167,0.00033,10]
[314434525,1708343438181,-2802.29221833,0.00033,10]
[314434526,1708343438190,-331.35288309,0.00034197,4]
[314434527,1708343438200,-159.93945507,0.000342,2]
[314434528,1708343438209,-483.85277719,0.00034299,2]
[314434529,1708343438355,-509.8140274,0.00034299,2]
[314434530,1708343438372,-876.30395543,0.00034299,2]
[314434531,1708343439503,-281.67852228,0.00034299,2]
[314434532,1708343439515,-1085.41820824,0.00034299,2]
[314434533,1708343439563,-155.0,0.00034196,4]
[314434534,1708343439574,-311.16410362,0.00034299,2]
[314434541,1708343440796,-434.45647265,0.00034299,2]
[314434542,1708343440833,-507.61999993,0.00034299,2]
[314434543,1708343441741,-10209.39084941,0.00034299,2]
[314434544,1708343441750,-1715.0,0.000343,2]
[314434545,1708343441760,-22036.4910031,0.00034975,2]
[314434546,1708343441769,-155.0,0.00035,4]
[314434547,1708343441779,-525.39,0.00036197,2]
[314434548,1708343441789,-172.62,0.00036559,2]
[314434549,1708343441798,-755.04,0.00036667,2]
[314434551,1708343441807,-304.9,0.00036685,2]
[314434552,1708343441817,-11021.9969,0.000367,2]
[314434553,1708343441826,-6610.04976767,0.000367,2]
[314434554,1708343441835,-2500.0,0.000367,2]
[314434555,1708343441848,-153.65453055,0.00036798,2]
[314434556,1708343441858,-494.25684278,0.00036799,2]
[314434559,1708343441869,-1000.0,0.000368,2]
[314434561,1708343441878,-1163.0575,0.000368,2]
[314434563,1708343441887,-27243.7067,0.000368,2]
[314434564,1708343441897,-245000.0,0.000368,2]
[314434565,1708343441906,-3377.1168,0.000368,2]
[314434566,1708343441915,-163.96,0.00036817,2]
[314434567,1708343441924,-189366.86141669,0.000369,7]
[314434568,1708343441933,-11075.18,0.00037081,2]
[314434569,1708343441944,-2000.0,0.00037228,2]
[314434570,1708343441953,-6610.04976759,0.00037389,2]
[314434571,1708343441963,-801.66347949,0.00037621,2]
[314434572,1708343441972,-153.65453053,0.0003794,2]
[314434573,1708343441981,-740.15,0.00038054,2]
[314434574,1708343441990,-6610.04976759,0.00038078,2]
[314434575,1708343441999,-244.96,0.000381,2]
[314434576,1708343442009,-372.61,0.00038157,2]
[314434577,1708343442018,-178.17,0.00038242,2]
[314434578,1708343442027,-661.25,0.00038356,15]
[314434579,1708343442040,-150.0,0.00038356,2]
[314434580,1708343442049,-525.39,0.00038461,2]
[314434581,1708343442058,-2820.78464518,0.00038552,14]
[314434582,1708343442068,-6610.04976759,0.00038767,2]
[314434583,1708343442078,-1074.71,0.000389,3]
[314434584,1708343442087,-1074.71,0.000389,3]
[314434585,1708343442096,-1074.71,0.000389,3]
[314434586,1708343442105,-1074.71,0.000389,3]
[314434587,1708343442115,-1074.71,0.000389,3]
[314434588,1708343442124,-1074.71,0.000389,3]
[314434589,1708343442133,-1074.71,0.000389,3]
[314434590,1708343442142,-1074.71,0.000389,3]
[314434591,1708343442151,-1074.71,0.000389,3]
[314434592,1708343442160,-1074.71,0.000389,3]
[314434593,1708343442169,-1074.71,0.000389,3]
[314434594,1708343442179,-1074.71,0.000389,3]
[314434595,1708343442188,-1074.71,0.000389,3]
[314434596,1708343442197,-1074.71,0.000389,3]
[314434597,1708343442206,-1074.71,0.000389,3]
[314434598,1708343442215,-1074.71,0.000389,3]
[314434599,1708343442225,-1074.71,0.000389,3]
[314434600,1708343442235,-1074.71,0.000389,3]
[314434601,1708343442244,-1074.71,0.000389,3]
[314434602,1708343442253,-1074.71,0.000389,3]
[314434603,1708343442262,-152.82,0.000389,3]
[314434604,1708343442271,-152.82,0.000389,3]
[314434605,1708343442281,-152.82,0.000389,3]
[314434606,1708343442290,-1303.52715379,0.00038947,8]
[314434607,1708343442299,-900.0,0.00039,4]
[314434608,1708343442308,-700.0,0.00039,120]
[314434609,1708343442318,-150.0,0.000391,2]
[314434610,1708343442327,-153.65453053,0.0003918,2]
[314434611,1708343442335,-801.66347947,0.000392,2]
[314434612,1708343442345,-800.0,0.0003926,2]
[314434613,1708343442353,-1471.7402248,0.00039351,2]
[314434614,1708343442363,-150.0,0.00039366,2]
[314434615,1708343442374,-6610.04976759,0.00039456,2]
[314434616,1708343442384,-150.0,0.00039498,2]
[314434617,1708343442393,-1471.7402248,0.00039542,2]
[314434618,1708343442402,-928.13798,0.0003958,2]
[314434619,1708343442411,-679.67526172,0.00039582,11]
[314434620,1708343442421,-167.88,0.00039726,2]
[314434621,1708343442430,-154.6420461,0.00039787,10]
[314434622,1708343442439,-372.61,0.00039801,2]
[314434623,1708343442449,-1744.05,0.0003985,2]
[314434624,1708343442458,-88674.6032951,0.0003987,6]
[314434625,1708343442467,-153.46685297,0.00039883,6]
[314434626,1708343442476,-358.65813627,0.00039883,13]
[314434627,1708343442485,-3687.80050258,0.0003989,2]
[314434628,1708343442495,-152.06641792,0.00039899,13]
[314434629,1708343442503,-176.35108352,0.000399,2]
[314434630,1708343442513,-189.03109604,0.000399,13]
[314434631,1708343442522,-1009.0551,0.000399,4]
[314434632,1708343442531,-5000.0,0.000399,3]
[314434633,1708343442541,-7887.3498,0.000399,2]
[314434634,1708343442550,-1566.3406956,0.000399,2]
[314434635,1708343442558,-226.26348672,0.000399,31]
[314434636,1708343442568,-151.0,0.00039904,2]
[314434637,1708343442577,-358.65813624,0.00039937,13]
[314434638,1708343442586,-16990.0,0.00039943,2]
[314434639,1708343442595,-152.0,0.0003996,3]
[314434640,1708343442604,-794.92792626,0.00039967,3]
[314434641,1708343442613,-88674.6032951,0.00039968,6]
[314434642,1708343442622,-88674.6032951,0.0003997,6]
[314434643,1708343442632,-11589.5234763,0.00039973,2]
[314434644,1708343442641,-21978.6961131,0.00039973,2]
[314434645,1708343442650,-21920.9012231,0.00039973,2]
[314434646,1708343442667,-177349.20659,0.0003998,6]
[314434647,1708343442679,-2000.0,0.00039987,2]
[314434648,1708343442689,-200.0,0.00039987,2]
[314434649,1708343442698,-2000.0,0.00039987,2]
[314434650,1708343442707,-200.0,0.00039987,2]
[314434651,1708343442716,-2000.0,0.00039987,2]
[314434652,1708343442726,-200.0,0.00039987,2]
[314434653,1708343442735,-10706.74435173,0.00039987,2]
[314434654,1708343442745,-250.0,0.00039989,2]
[314434655,1708343442755,-177349.20659,0.0003999,6]
[314434656,1708343442765,-358.65813624,0.00039992,13]
[314434657,1708343442774,-85653.95481384,0.00039997,2]
[314434658,1708343442785,-500.0,0.00039999,31]
[314434659,1708343442794,-309.13280359,0.00039999,31]
[314434660,1708343442804,-489.96521237,0.00039999,31]
[314434661,1708343442814,-269.97101617,0.00039999,31]
[314434662,1708343442823,-209.2648449,0.00039999,2]
[314434663,1708343442833,-288.3955073,0.00039999,2]
[314434664,1708343442842,-209.2648449,0.00039999,2]
[314434665,1708343442852,-209.2648449,0.00039999,2]
[314434666,1708343442866,-288.3955073,0.00039999,2]
[314434667,1708343442875,-209.2648449,0.00039999,2]
[314434668,1708343442885,-288.3955073,0.00039999,2]
[314434669,1708343442895,-209.2648449,0.00039999,2]
[314434670,1708343442905,-288.3955073,0.00039999,2]
[314434671,1708343442915,-288.3955073,0.00039999,2]
[314434672,1708343442924,-2680.26741902,0.0004,3]
[314434673,1708343442935,-167.46959294,0.0004,4]
[314434674,1708343442945,-491.51376351,0.0004,4]
[314434675,1708343442955,-1493168.54293944,0.0004,30]
[314434677,1708343442964,-1668125.91210059,0.0004,30]
[314434683,1708343443186,-87712.15056874,0.0004,30]
[314434689,1708343443316,-1144.82674456,0.0004,30]
[314434690,1708343443371,-264.7712628,0.0004,30]
[314434691,1708343443489,-2947.29548235,0.0004,30]
[314434692,1708343443501,-1548.82020175,0.0004,30]
[314434697,1708343446413,-76744.88190868,0.0004,30]
[314434698,1708343469915,7474.48528739,0.00023,2]
[314434699,1708343469936,8000.0,0.00023,2]
[314434700,1708343469956,8000.0,0.00023,2]
[314434701,1708343469978,8000.0,0.00023,2]
[314434702,1708343469998,8000.0,0.00023,2]
[314434703,1708343470021,8000.0,0.00023,2]
[314434704,1708343470043,8000.0,0.00023,2]
[314434705,1708343470063,8000.0,0.00023,2]
[314434706,1708343470083,8000.0,0.00023,2]
[314434707,1708343470114,1000.0,0.00023,2]
[314434708,1708343470151,1000.0,0.00023,2]
[314434709,1708343470181,500000.0,0.00023,2]
[314434710,1708343470216,930.95517538,0.00023,2]
[314434711,1708343470241,4322671.76664511,0.00023,2]
[314434712,1708343583930,150.0,0.000225,2]
[314434713,1708343583952,150.0,0.000225,2]
[314434714,1708343583973,150.0,0.000225,2]
[314434715,1708343583995,150.0,0.000225,2]
[314434716,1708343584017,31209.23726006,0.000225,2]
[314434717,1708343631978,150.0,0.00023,2]
[314434718,1708343631999,150.0,0.00023,2]
[314434719,1708343632018,150.0,0.00023,2]
[314434720,1708343632038,150.0,0.00023,2]
[314434721,1708343632057,150.0,0.00023,2]
[314434722,1708343632076,150.0,0.00023,2]
[314434723,1708343632096,150.0,0.00023,2]
[314434724,1708343632115,150.0,0.00023,2]
[314434725,1708343632134,150.0,0.00023,2]
[314434726,1708343632154,150.0,0.00023,2]
[314434727,1708343632174,150.0,0.00023,2]
[314434728,1708343632193,150.0,0.00023,2]
[314434729,1708343632214,150.0,0.00023,2]
[314434730,1708343632234,150.0,0.00023,2]
[314434731,1708343632465,150.0,0.00023,2]
[314434732,1708343632487,150.0,0.00023,2]
[314434733,1708343632508,150.0,0.00023,2]
[314434734,1708343632529,150.0,0.00023,2]
[314434735,1708343632549,150.0,0.00023,2]
[314434736,1708343632570,150.0,0.00023,2]
[314434737,1708343632590,150.0,0.00023,2]
[314434738,1708343632610,190.47,0.00023,2]
[314434739,1708343632629,646118.99609483,0.00023,2]
[314434740,1708343632653,4754.53442792,0.00023,2]
[314434741,1708343632673,130000.0,0.00023,2]
[314434742,1708343632695,811010.40849095,0.00023,2]
[314434743,1708343640882,-14989.0,0.00023298,4]
[314434747,1708343648619,150.0,0.0002,2]
[314434748,1708343648641,3123.60197752,0.0002,2]
[314434749,1708343656236,155.0,0.000225,2]
[314434750,1708343658381,155.9802843,0.0002,2]
[314434752,1708343665602,156.55221049,0.00022,2]
[314434753,1708343672235,150.0,0.0002,2]
[314434754,1708343672257,5.0,0.0002,2]
[314434755,1708343690216,305.0,0.0002,2]
[314434756,1708343829082,-297.17545561,0.000241,2]
[314434757,1708343866314,279.11161692,0.0002398,2]
[314434758,1708343891387,2051.71292747,0.0002329,4]
[314434759,1708344104731,-150.45416224,0.00023267,2]
[314434760,1708344133628,-155.0,0.00025088,2]
[314434761,1708344133657,-694.54583776,0.00025089,2]
[314434762,1708344155525,-200.0,0.00024964,2]
[314434763,1708344155556,-9145.1357006,0.00025089,2]
[314434764,1708344155592,-654.8642994,0.0002509,2]
[314434765,1708344173371,-1915.6164006,0.0002509,2]
[314434768,1708344367693,500.0,0.00016575,7]
[314434769,1708344404042,-216.05927504,0.00028,10]
[314434770,1708344440159,-170.24,0.00028977,2]
[314434771,1708344440181,-159.53980533,0.0003,30]
[314434772,1708344440204,-223.9238572,0.00033,5]
[314434799,1708344631369,-200.0,0.00032835,2]
[314434800,1708344631379,-29.77980533,0.00033,5]
[314434801,1708344631388,-157.39481,0.000333,2]
[314434802,1708344631398,-8199.7346153,0.00033399,2]
[314434803,1708344631408,-8984.0,0.000334,2]
[314434804,1708344631417,-472.85,0.00033914,2]
[314434805,1708344631427,-295.77212427,0.00035,4]
[314434806,1708344631436,-157.39480998,0.00035267,2]
[314434807,1708344631445,-760.01,0.00035267,2]
[314434808,1708344631455,-254.08,0.0003575,2]
[314434809,1708344631463,-153.23,0.00035759,2]
[314434810,1708344631472,-248.4,0.00035824,2]
[314434811,1708344631482,-3974.06937542,0.0003591,5]
[314434812,1708344631491,-493.6526031,0.00036,4]
[314434813,1708344631500,-299.99,0.00036,30]
[314434814,1708344631509,-604.04,0.00036069,2]
[314434815,1708344631518,-472.85,0.00036178,2]
[314434816,1708344631528,-1340.9299,0.000365,2]
[314434817,1708344631537,-2177.0637,0.000365,2]
[314434818,1708344631546,-214.8602,0.000365,2]
[314434819,1708344631555,-3943.37143026,0.000365,2]
[314434820,1708344631564,-2178.2476,0.000365,2]
[314434821,1708344631573,-233.74226119,0.000365,2]
[314434822,1708344631582,-3708.65081342,0.0003659,2]
[314434823,1708344631631,-458.27989631,0.0003659,2]
[314434824,1708344631643,-1870.6108936,0.0003659,2]
[314434825,1708344631652,-224.02236121,0.00036598,4]
[314434826,1708344631661,-2336.7556,0.00036598,2]
[314434827,1708344631670,-363.7717,0.00036599,2]
[314434828,1708344631679,-2500.0,0.00036599,2]
[314434829,1708344631688,-10685.8073886,0.000366,2]
[314434830,1708344631747,-373.90204875,0.000366,2]
[314434851,1708344637850,-747.17880586,0.000365,2]
[314434853,1708344637862,-89.63489414,0.000365,2]
[314434855,1708344637871,-651.64234541,0.000366,2]
[314434857,1708344637883,-420.8888349,0.000366,2]
[314434860,1708344637895,-313.89851893,0.000366,2]
[314434892,1708344640007,-558.0,0.000366,2]
[314434893,1708344640298,-15111.48835926,0.000366,2]
[314434894,1708344641035,-601.06681823,0.000366,2]
[314434927,1708344644363,-10804.27538592,0.000366,2]
[314434928,1708344644372,-1632.92463953,0.000366,2]
[314434929,1708344644383,-4370.98307833,0.000366,2]
[314434930,1708344644395,-6012.75900151,0.000366,2]
[314434931,1708344644406,-3283.58258085,0.000366,2]
[314434932,1708344644530,-61110.5687226,0.000366,2]
[314434933,1708344644587,-2451.89167739,0.000366,2]
[314434934,1708344644599,-15699.53489979,0.000366,2]
[314434935,1708344644608,-1000.0,0.000366,2]
[314434936,1708344644617,-427.19399042,0.00036698,4]
[314434937,1708344644627,-6798.96881533,0.00036699,4]
[314434938,1708344644645,-12670.47902533,0.00036699,4]
[314434939,1708344644755,-7.28503213,0.00036699,4]
[314434940,1708344644775,-2418.22225108,0.00036699,4]
[314434962,1708344645388,-11691.93687226,0.00036699,4]
[314434964,1708344645400,-3018.85,0.00036699,4]
[314434966,1708344645412,-10823.41539,0.00036699,4]
[314434972,1708344645513,-522.58,0.00036699,4]
[314434976,1708344645545,-0.00992286,0.00036699,4]
[314434987,1708344645664,-384.34893729,0.00036,4]
[314434988,1708344645676,-109.9780545,0.00036,4]
[314434989,1708344645686,-16754.35714065,0.00036699,4]
[314434990,1708344645695,-245000.0,0.000367,2]
[314434991,1708344645704,-233.74226118,0.00036708,2]
[314434992,1708344645714,-153.23039402,0.0003675,8]
[314434993,1708344645723,-1436.34137526,0.00036798,2]
[314434994,1708344645733,-233.74226118,0.00036917,2]
[314434995,1708344645742,-616.79,0.00037066,2]
[314434996,1708344645752,-178.17,0.00037157,2]
[314434997,1708344645761,-157.39480998,0.00037233,2]
[314434998,1708344645771,-395.96,0.00037235,2]
[314434999,1708344645780,-1850.0,0.000373,2]
[314435000,1708344645790,-166.53,0.00037384,2]
[314435001,1708344645800,-3943.37143021,0.00037433,2]
[314435002,1708344645810,-1436.34137522,0.00037433,2]
[314435003,1708344645820,-766.56917949,0.0003745,2]
[314435004,1708344645830,-248.4,0.00037468,2]
[314435005,1708344645839,-546.0,0.00038,2]
[314435006,1708344645849,-494.96262592,0.00038,2]
[314435007,1708344645858,-494.96262592,0.00038,2]
[314435008,1708344645868,-494.96262592,0.00038,2]
[314435009,1708344645877,-494.96262592,0.00038,2]
[314435010,1708344645887,-494.96262592,0.00038,2]
[314435011,1708344645897,-494.96262592,0.00038,2]
[314435012,1708344645907,-494.96262592,0.00038,2]
[314435013,1708344645917,-494.96262592,0.00038,2]
[314435014,1708344645927,-494.96262592,0.00038,2]
[314435016,1708344645936,-494.96262592,0.00038,2]
[314435018,1708344645945,-494.96262592,0.00038,2]
[314435020,1708344645955,-494.96262592,0.00038,2]
[314435021,1708344645964,-494.96262592,0.00038,2]
[314435024,1708344645973,-494.96262592,0.00038,2]
[314435026,1708344645983,-494.96262592,0.00038,2]
[314435028,1708344645992,-494.96262592,0.00038,2]
[314435030,1708344646001,-494.96262592,0.00038,2]
[314435032,1708344646010,-494.96262592,0.00038,2]
[314435033,1708344646019,-494.96262592,0.00038,2]
[314435035,1708344646029,-494.96262592,0.00038,2]
[314435037,1708344646038,-494.96262592,0.00038,2]
[314435040,1708344646047,-494.96262592,0.00038,2]
[314435042,1708344646057,-494.96262592,0.00038,2]
[314435044,1708344646066,-494.96262592,0.00038,2]
[314435046,1708344646075,-494.96262592,0.00038,2]
[314435048,1708344646084,-494.96262592,0.00038,2]
[314435049,1708344646093,-494.96262592,0.00038,2]
[314435052,1708344646102,-494.96262592,0.00038,2]
[314435054,1708344646112,-494.96262592,0.00038,2]
[314435055,1708344646121,-494.96262592,0.00038,2]
[314435058,1708344646130,-494.96262592,0.00038,2]
[314435060,1708344646140,-494.96262592,0.00038,2]
[314435062,1708344646150,-494.96262592,0.00038,2]
[314435064,1708344646160,-494.96262592,0.00038,2]
[314435066,1708344646169,-494.96262592,0.00038,2]
[314435068,1708344646180,-494.96262592,0.00038,2]
[314435069,1708344646194,-494.96262592,0.00038,2]
[314435070,1708344646209,-494.96262592,0.00038,2]
[314435071,1708344646218,-494.96262592,0.00038,2]
[314435072,1708344646227,-494.96262592,0.00038,2]
[314435073,1708344646236,-494.96262592,0.00038,2]
[314435074,1708344646246,-494.96262592,0.00038,2]
[314435075,1708344646255,-494.96262592,0.00038,2]
[314435076,1708344646265,-494.96262592,0.00038,2]
[314435077,1708344646275,-494.96262592,0.00038,2]
[314435078,1708344646285,-494.96262592,0.00038,2]
[314435079,1708344646294,-494.96262592,0.00038,2]
[314435080,1708344646304,-494.96262592,0.00038,2]
[314435081,1708344646313,-494.96262592,0.00038,2]
[314435083,1708344646323,-494.96262592,0.00038,2]
[314435085,1708344646333,-494.96262592,0.00038,2]
[314435088,1708344646343,-494.96262592,0.00038,2]
[314435089,1708344646352,-494.96262592,0.00038,2]
[314435091,1708344646362,-494.96262592,0.00038,2]
[314435094,1708344646375,-494.96262592,0.00038,2]
[314435096,1708344646384,-494.96262592,0.00038,2]
[314435098,1708344646395,-494.96262592,0.00038,2]
[314435100,1708344646404,-494.96262592,0.00038,2]
[314435102,1708344646414,-494.96262592,0.00038,2]
[314435104,1708344646424,-494.96262592,0.00038,2]
[314435106,1708344646434,-494.96262592,0.00038,2]
[314435108,1708344646444,-494.96262592,0.00038,2]
[314435110,1708344646454,-494.96262592,0.00038,2]
[314435112,1708344646464,-494.96262592,0.00038,2]
[314435114,1708344646473,-494.96262592,0.00038,2]
[314435116,1708344646483,-494.96262592,0.00038,2]
[314435118,1708344646492,-494.96262592,0.00038,2]
[314435120,1708344646501,-494.96262592,0.00038,2]
[314435122,1708344646510,-494.96262592,0.00038,2]
[314435124,1708344646520,-494.96262592,0.00038,2]
[314435126,1708344646529,-494.96262592,0.00038,2]
[314435128,1708344646539,-494.96262592,0.00038,2]
[314435130,1708344646548,-494.96262592,0.00038,2]
[314435132,1708344646557,-494.96262592,0.00038,2]
[314435133,1708344646566,-494.96262592,0.00038,2]
[314435134,1708344646576,-494.96262592,0.00038,2]
[314435135,1708344646587,-494.96262592,0.00038,2]
[314435136,1708344646597,-494.96262592,0.00038,2]
[314435137,1708344646607,-494.96262592,0.00038,2]
[314435138,1708344646617,-494.96262592,0.00038,2]
[314435139,1708344646626,-494.96262592,0.00038,2]
[314435140,1708344646637,-494.96262592,0.00038,2]
[314435141,1708344646647,-494.96262592,0.00038,2]
[314435142,1708344646657,-494.96262592,0.00038,2]
[314435143,1708344646667,-494.96262592,0.00038,2]
[314435144,1708344646677,-494.96262592,0.00038,2]
[314435145,1708344646688,-494.96262592,0.00038,2]
[314435146,1708344646697,-494.96262592,0.00038,2]
[314435147,1708344646706,-494.96262592,0.00038,2]
[314435148,1708344646716,-494.96262592,0.00038,2]
[314435149,1708344646725,-494.96262592,0.00038,2]
[314435150,1708344646734,-494.96262592,0.00038,2]
[314435151,1708344646744,-494.96262592,0.00038,2]
[314435152,1708344646753,-494.96262592,0.00038,2]
[314435153,1708344646763,-494.96262592,0.00038,2]
[314435154,1708344646773,-494.96262592,0.00038,2]